fUST/lending_fUST_20250121
["ID","MTS","AMOUNT","RATE_DAILY","PERIOD"]
[349727558,1737396654340,-926.89,0.00023013,3]
[349727559,1737396654351,-151.0,0.00023013,7]
[349727560,1737396654360,-5142.17,0.00023013,3]
[349727561,1737396654370,-151.0,0.00023013,7]
[349727562,1737396654379,-1599.63,0.00023013,3]
[349727563,1737396654388,-662.04,0.00023013,3]
[349727564,1737396654398,-500.0,0.00023013,3]
[349727565,1737396654407,-801.93,0.00023013,3]
[349727566,1737396654417,-1829.66,0.00023013,3]
[349727567,1737396654427,-2226.09,0.00023013,3]
[349727568,1737396654437,-151.0,0.00023013,7]
[349727569,1737396654447,-500.0,0.00023013,3]
[349727570,1737396654457,-500.0,0.00023013,3]
[349727571,1737396654466,-151.0,0.00023013,7]
[349727572,1737396654476,-151.0,0.00023013,7]
[349727573,1737396654489,-705.88,0.00023013,3]
[349727574,1737396654502,-853.59,0.00023013,3]
[349727575,1737396654513,-1818.79,0.00023013,3]
[349727576,1737396654522,-22123.79,0.00023013,3]
[349727577,1737396654532,-3935.05,0.00023013,3]
[349727578,1737396654542,-500.0,0.00023013,3]
[349727579,1737396654554,-500.0,0.00023013,3]
[349727580,1737396654565,-525.407641,0.00023013,3]
[349727581,1737396654582,-5501.55,0.00023013,3]
[349727582,1737396654592,-170.0,0.00023014,2]
[349727583,1737396654602,-176.159173,0.00023039,7]
[349727584,1737396654612,-176.159173,0.00023039,7]
[349727585,1737396654622,-171.059203,0.00023039,7]
[349727586,1737396654631,-171.059203,0.00023039,7]
[349727587,1737396654640,-151.0,0.00023039,7]
[349727588,1737396654650,-151.0,0.00023039,7]
[349727589,1737396654660,-257.4296,0.00023039,7]
[349727590,1737396654670,-257.4296,0.00023039,7]
[349727591,1737396654679,-151.0,0.00023039,7]
[349727592,1737396654688,-1000.0,0.00023041,2]
[349727593,1737396654698,-499.107,0.0002305,2]
[349727594,1737396654707,-8711.68536552,0.00023053,2]
[349727595,1737396654717,-395.0,0.00023112,2]
[349727596,1737396654727,-445.55031171,0.0002315,3]
[349727597,1737396654737,-151.0,0.0002315,7]
[349727598,1737396654746,-151.0,0.0002315,7]
[349727599,1737396654756,-151.0,0.0002315,7]
[349727600,1737396654765,-500.0,0.0002315,3]
[349727601,1737396654775,-751.57,0.0002315,3]
[349727602,1737396654784,-800.87,0.0002315,3]
[349727603,1737396654794,-500.0,0.0002315,3]
[349727604,1737396654805,-151.0,0.0002315,7]
[349727605,1737396654814,-500.0,0.0002315,3]
[349727606,1737396654824,-500.0,0.0002315,3]
[349727607,1737396654833,-500.0,0.0002315,3]
[349727608,1737396654844,-737.53,0.0002315,3]
[349727609,1737396654854,-500.0,0.0002315,3]
[349727610,1737396654863,-500.0,0.0002315,3]
[349727611,1737396654872,-500.0,0.0002315,3]
[349727612,1737396654883,-500.0,0.0002315,3]
[349727613,1737396654893,-500.0,0.0002315,3]
[349727614,1737396654903,-549.89,0.0002315,3]
[349727615,1737396654912,-500.0,0.0002315,3]
[349727616,1737396654921,-580.515495,0.0002315,7]
[349727617,1737396654931,-580.515495,0.0002315,7]
[349727618,1737396654941,-650.63,0.0002315,3]
[349727619,1737396654954,-1505.76,0.0002315,2]
[349727620,1737396654965,-216.994252,0.0002315,7]
[349727621,1737396654975,-216.994252,0.0002315,7]
[349727622,1737396654986,-151.0,0.0002315,7]
[349727623,1737396654996,-918.23,0.0002315,3]
[349727624,1737396655006,-442.859003,0.0002315,7]
[349727625,1737396655016,-2140.87,0.0002315,3]
[349727626,1737396655026,-442.859003,0.0002315,7]
[349727627,1737396655036,-1287.93,0.0002315,3]
[349727628,1737396655048,-500.0,0.0002315,3]
[349727629,1737396655057,-1273.12,0.0002315,3]
[349727630,1737396655066,-2782.06,0.0002315,3]
[349727631,1737396655076,-1026.84,0.0002315,3]
[349727632,1737396655086,-659.18,0.0002315,3]
[349727633,1737396655096,-2546.39,0.0002315,3]
[349727634,1737396655106,-867.04,0.0002315,3]
[349727635,1737396655115,-500.0,0.0002315,3]
[349727636,1737396655125,-469.15,0.0002315,3]
[349727637,1737396655134,-668.74,0.0002315,3]
[349727638,1737396655143,-552.29,0.0002315,3]
[349727639,1737396655153,-500.0,0.0002315,3]
[349727640,1737396655162,-1602.44,0.0002315,3]
[349727641,1737396655171,-8737.27,0.0002315,3]
[349727642,1737396655182,-926.89,0.0002315,3]
[349727643,1737396655192,-5142.17,0.0002315,3]
[349727644,1737396655202,-1599.63,0.0002315,3]
[349727645,1737396655211,-662.04,0.0002315,3]
[349727646,1737396655220,-500.0,0.0002315,3]
[349727647,1737396655230,-801.93,0.0002315,3]
[349727648,1737396655239,-1829.66,0.0002315,3]
[349727649,1737396655249,-2226.09,0.0002315,3]
[349727650,1737396655259,-500.0,0.0002315,3]
[349727651,1737396655268,-500.0,0.0002315,3]
[349727652,1737396655278,-705.88,0.0002315,3]
[349727653,1737396655290,-853.59,0.0002315,3]
[349727654,1737396655304,-1818.79,0.0002315,3]
[349727655,1737396655313,-22123.79,0.0002315,3]
[349727656,1737396655323,-3935.05,0.0002315,3]
[349727657,1737396655333,-500.0,0.0002315,3]
[349727658,1737396655343,-500.0,0.0002315,3]
[349727659,1737396655353,-5501.55,0.0002315,3]
[349727660,1737396655363,-8711.68536552,0.00023194,2]
[349727661,1737396655372,-500.15094616,0.0002324,2]
[349727662,1737396655382,-500.0,0.0002324,2]
[349727663,1737396655392,-500.0,0.0002324,2]
[349727664,1737396655402,-500.0,0.0002324,2]
[349727665,1737396655411,-416.8,0.00023275,2]
[349727666,1737396655421,-751.57,0.00023287,3]
[349727667,1737396655431,-800.87,0.00023287,3]
[349727668,1737396655441,-500.0,0.00023287,3]
[349727669,1737396655451,-500.0,0.00023287,3]
[349727670,1737396655461,-500.0,0.00023287,3]
[349727671,1737396655471,-500.0,0.00023287,3]
[349727672,1737396655481,-737.53,0.00023287,3]
[349727673,1737396655491,-500.0,0.00023287,3]
[349727674,1737396655500,-500.0,0.00023287,3]
[349727675,1737396655511,-500.0,0.00023287,3]
[349727676,1737396655523,-500.0,0.00023287,3]
[349727677,1737396655533,-271.071131,0.00023287,7]
[349727678,1737396655543,-500.0,0.00023287,3]
[349727679,1737396655558,-500.0,0.00023287,3]
[349727680,1737396655568,-650.63,0.00023287,3]
[349727681,1737396655578,-1505.76,0.00023287,2]
[349727682,1737396655588,-918.23,0.00023287,3]
[349727683,1737396655598,-2140.87,0.00023287,3]
[349727684,1737396655608,-1287.93,0.00023287,3]
[349727685,1737396655618,-500.0,0.00023287,3]
[349727686,1737396655628,-1273.12,0.00023287,3]
[349727687,1737396655637,-2782.06,0.00023287,3]
[349727688,1737396655647,-1026.84,0.00023287,3]
[349727689,1737396655658,-659.18,0.00023287,3]
[349727690,1737396655668,-171.059203,0.00023287,7]
[349727691,1737396655678,-2546.39,0.00023287,3]
[349727692,1737396655689,-171.059203,0.00023287,7]
[349727693,1737396655699,-867.04,0.00023287,3]
[349727694,1737396655709,-668.74,0.00023287,3]
[349727695,1737396655719,-151.0,0.00023287,7]
[349727696,1737396655729,-151.0,0.00023287,7]
[349727697,1737396655740,-552.29,0.00023287,3]
[349727698,1737396655750,-257.4296,0.00023287,7]
[349727699,1737396655760,-151.0,0.00023287,7]
[349727700,1737396655770,-257.4296,0.00023287,7]
[349727701,1737396655781,-1602.44,0.00023287,3]
[349727702,1737396655791,-231.719008,0.00023287,7]
[349727703,1737396655806,-8737.27,0.00023287,3]
[349727704,1737396655815,-926.89,0.00023287,3]
[349727705,1737396655825,-151.0,0.00023287,7]
[349727706,1737396655835,-5142.17,0.00023287,3]
[349727707,1737396655845,-151.0,0.00023287,7]
[349727708,1737396655854,-1599.63,0.00023287,3]
[349727709,1737396655952,-662.04,0.00023287,3]
[349727710,1737396655967,-801.93,0.00023287,3]
[349727711,1737396655976,-1829.66,0.00023287,3]
[349727712,1737396655988,-2226.09,0.00023287,3]
[349727713,1737396656000,-151.0,0.00023287,7]
[349727714,1737396656011,-500.0,0.00023287,3]
[349727715,1737396656021,-500.0,0.00023287,3]
[349727716,1737396656036,-151.0,0.00023287,7]
[349727717,1737396656050,-151.0,0.00023287,7]
[349727718,1737396656060,-705.88,0.00023287,3]
[349727719,1737396656070,-853.59,0.00023287,3]
[349727720,1737396656080,-1818.79,0.00023287,3]
[349727721,1737396656090,-22123.79,0.00023287,3]
[349727722,1737396656100,-3935.05,0.00023287,3]
[349727723,1737396656110,-500.0,0.00023287,3]
[349727724,1737396656120,-5501.55,0.00023287,3]
[349727725,1737396656130,-600.0,0.00023297,2]
[349727726,1737396656139,-353.5775999,0.00023315,2]
[349727727,1737396656149,-8711.68536552,0.00023334,2]
[349727728,1737396656160,-318.57004039,0.00023344,2]
[349727729,1737396656169,-156.621993,0.00023373,4]
[349727730,1737396656179,-216.994252,0.00023419,7]
[349727731,1737396656188,-216.994252,0.00023419,7]
[349727732,1737396656197,-151.0,0.00023419,7]
[349727733,1737396656208,-442.859003,0.00023419,7]
[349727734,1737396656217,-442.859003,0.00023419,7]
[349727735,1737396656226,-751.57,0.00023424,3]
[349727736,1737396656236,-800.87,0.00023424,3]
[349727737,1737396656245,-500.0,0.00023424,3]
[349727738,1737396656254,-288.992004,0.00023424,7]
[349727739,1737396656264,-500.0,0.00023424,3]
[349727740,1737396656274,-500.0,0.00023424,3]
[349727741,1737396656285,-737.53,0.00023424,3]
[349727742,1737396656294,-176.159173,0.00023424,7]
[349727743,1737396656308,-176.159173,0.00023424,7]
[349727744,1737396656318,-500.0,0.00023424,3]
[349727745,1737396656329,-500.0,0.00023424,3]
[349727746,1737396656339,-580.515495,0.00023424,7]
[349727747,1737396656349,-580.515495,0.00023424,7]
[349727748,1737396656360,-650.63,0.00023424,3]
[349727749,1737396656371,-1505.76,0.00023424,2]
[349727750,1737396656382,-918.23,0.00023424,3]
[349727751,1737396656394,-2140.87,0.00023424,3]
[349727752,1737396656403,-1287.93,0.00023424,3]
[349727753,1737396656414,-500.0,0.00023424,3]
[349727754,1737396656424,-1273.12,0.00023424,3]
[349727755,1737396656433,-2782.06,0.00023424,3]
[349727756,1737396656442,-1026.84,0.00023424,3]
[349727757,1737396656452,-659.18,0.00023424,3]
[349727758,1737396656463,-2546.39,0.00023424,3]
[349727759,1737396656473,-867.04,0.00023424,3]
[349727760,1737396656482,-568.11620711,0.00023424,3]
[349727761,1737396656503,-100.62379289,0.00023424,3]
[349727762,1737396656517,-552.29,0.00023424,3]
[349727763,1737396656535,-191.447432,0.00023424,7]
[349727764,1737396656545,-73.53659211,0.00023424,3]
[349727765,1737396656562,-1528.90340789,0.00023424,3]
[349727766,1737396656572,-2238.54118179,0.00023424,3]
[349727767,1737396656757,-500.0,0.00021917,3]
[349727768,1737396656766,-500.0,0.00021917,3]
[349727769,1737396656776,-633.92,0.00021917,3]
[349727770,1737396656785,-67.07386096,0.00021917,3]
[349727771,1737396656797,-432.92613904,0.00021917,3]
[349727772,1737396656808,-500.0,0.00021917,3]
[349727773,1737396656821,-500.0,0.00022054,3]
[349727774,1737396656830,-500.0,0.00022054,3]
[349727775,1737396656841,-500.0,0.00022054,3]
[349727776,1737396656852,-633.92,0.00022054,3]
[349727777,1737396656862,-196.9003471,0.00022191,3]
[349727778,1737396656875,-303.0996529,0.00022191,3]
[349727779,1737396656885,-500.0,0.00022191,3]
[349727780,1737396656895,-500.0,0.00022328,3]
[349727781,1737396656906,-500.0,0.00022328,3]
[349727782,1737396656917,-515.23345343,0.00022465,3]
[349727783,1737396656927,-500.0,0.00022465,3]
[349727784,1737396656936,-500.0,0.00022602,3]
[349727785,1737396656950,-500.0,0.00022739,3]
[349727786,1737396656960,-500.0,0.00022876,3]
[349727787,1737396656971,-500.0,0.00023013,3]
[349727788,1737396656982,-500.0,0.0002315,3]
[349727789,1737396656992,-3269.44005465,0.00023424,3]
[349727790,1737396657003,-742.5024786,0.00023424,3]
[349727791,1737396657015,-938.364,0.00023424,3]
[349727792,1737396657034,-633.92,0.00022191,3]
[349727793,1737396657044,-1548.42228496,0.00023424,3]
[349727794,1737396657058,-926.89,0.00023424,3]
[349727795,1737396657067,-5142.17,0.00023424,3]
[349727796,1737396657077,-1599.63,0.00023424,3]
[349727797,1737396657087,-662.04,0.00023424,3]
[349727798,1737396657096,-801.93,0.00023424,3]
[349727799,1737396657106,-820.49965204,0.00023424,3]
[349727800,1737396657123,-248.80106219,0.00022191,3]
[349727801,1737396657133,-1009.16034796,0.00023424,3]
[349727802,1737396657144,-2226.09,0.00023424,3]
[349727803,1737396657155,-500.0,0.00023424,3]
[349727804,1737396657166,-500.0,0.00023424,3]
[349727805,1737396657176,-705.88,0.00023424,3]
[349727806,1737396657187,-853.59,0.00023424,3]
[349727807,1737396657198,-1818.79,0.00023424,3]
[349727808,1737396657210,-22123.79,0.00023424,3]
[349727809,1737396657220,-3935.05,0.00023424,3]
[349727810,1737396657230,-500.0,0.00023424,3]
[349727811,1737396657240,-5501.55,0.00023424,3]
[349727812,1737396657252,-215.1709412,0.00023452,2]
[349727813,1737396657262,-154.1159478,0.00023452,2]
[349727814,1737396657273,-215.1709412,0.00023452,2]
[349727815,1737396657284,-154.1159478,0.00023452,2]
[349727816,1737396657295,-215.1709412,0.00023452,2]
[349727817,1737396657309,-154.1159478,0.00023452,2]
[349727818,1737396657320,-153.9915274,0.00023452,2]
[349727819,1737396657330,-171.0174412,0.00023452,2]
[349727820,1737396657339,-151.0,0.00023461,7]
[349727821,1737396657349,-8711.68536552,0.00023474,2]
[349727822,1737396657359,-160.0,0.00023488,5]
[349727823,1737396657369,-596221.93723962,0.000235,2]
[349727824,1737396657380,-2256.3686886,0.000235,2]
[349727857,1737397616964,1000.0,0.000167,2]
[349727858,1737397619623,164.615655,0.00013973,2]
[349727859,1737397626142,1000.0,0.000167,2]
[349727960,1737397832574,-196.84678371,0.00017112,2]
[349727962,1737397832584,-196.84678371,0.00017285,2]
[349727963,1737397832594,-323.44643258,0.000189,2]
[349728078,1737397838406,-196.84678371,0.00016941,2]
[349728080,1737397838417,-519.89008676,0.000189,2]
[349728082,1737397838427,-211.59203173,0.00018971,2]
[349728087,1737397838463,-2123.08785667,0.00018971,2]
[349728089,1737397838473,-2047.0,0.00019304,2]
[349728091,1737397838483,-196.84678371,0.00019305,2]
[349728093,1737397838493,-227.13055294,0.00019432,2]
[349728095,1737397838503,-493.623025,0.00019879,2]
[349728097,1737397838512,-300.0,0.00019954,2]
[349728099,1737397838523,-24900.0,0.00019955,2]
[349728101,1737397838532,-170.503294,0.00020217,2]
[349728103,1737397838542,-690.1104869,0.00020226,2]
[349728105,1737397838551,-500.0,0.00020432,2]
[349728107,1737397838561,-2910.87363055,0.00021,30]
[349728109,1737397838570,-2413.12636945,0.00021,60]
[349728111,1737397838581,-473.31092925,0.0002146,2]
[349728113,1737397838591,-249.93635299,0.00021483,2]
[349728115,1737397838600,-4982.06249503,0.00021688,2]
[349728124,1737397838678,-6818.62206188,0.00021688,2]
[349728126,1737397838688,-420.0,0.00021729,2]
[349728129,1737397838698,-1082.59061089,0.00021751,2]
[349728132,1737397838708,-161.273809,0.00021788,2]
[349728135,1737397838718,-153.84,0.00021816,2]
[349728137,1737397838728,-3000.0,0.00021817,2]
[349728139,1737397838738,-1762.49074416,0.00021817,2]
[349728141,1737397838747,-1762.49074413,0.00021851,2]
[349728143,1737397838757,-1762.49074413,0.00021886,2]
[349728145,1737397838772,-151.0,0.000219,4]
[349728147,1737397838781,-212.88161847,0.000219,3]
[349728149,1737397838791,-15179.76422143,0.00021907,2]
[349728151,1737397838800,-161.273809,0.0002191,2]
[349728153,1737397838810,-169.686,0.00021915,2]
[349728155,1737397838820,-192.474,0.00021915,2]
[349728157,1737397838829,-204.04919965,0.00021916,2]
[349728159,1737397838838,-500.39592519,0.00021916,2]
[349728161,1737397838848,-500.0,0.00021916,2]
[349728163,1737397838857,-500.0,0.00021916,2]
[349728165,1737397838867,-500.0,0.00021916,2]
[349728167,1737397838877,-500.0,0.00021916,2]
[349728169,1737397838886,-500.0,0.00021916,2]
[349728171,1737397838896,-500.0,0.00021916,2]
[349728173,1737397838906,-500.0,0.00021916,2]
[349728175,1737397838916,-500.0,0.00021916,2]
[349728177,1737397838925,-500.0,0.00021916,2]
[349728179,1737397838935,-500.0,0.00021916,2]
[349728181,1737397838945,-500.0,0.00021916,2]
[349728183,1737397838954,-390.70054752,0.00021916,2]
[349728185,1737397838964,-500.0,0.00021916,2]
[349728187,1737397838974,-500.0,0.00021916,2]
[349728189,1737397838984,-500.0,0.00021916,2]
[349728191,1737397838993,-500.0,0.00021916,2]
[349728193,1737397839003,-500.0,0.00021916,2]
[349728195,1737397839013,-567.96447367,0.00021916,2]
[349728208,1737397839132,-500.0,0.00021916,2]
[349728210,1737397839146,-500.0,0.00021916,2]
[349728212,1737397839156,-500.0,0.00021916,2]
[349728214,1737397839166,-500.0,0.00021916,2]
[349728216,1737397839176,-160.90985229,0.00021916,2]
[349728218,1737397839186,-500.0,0.00021916,2]
[349728221,1737397839196,-486.14491826,0.00021916,2]
[349728223,1737397839206,-500.0,0.00021916,2]
[349728225,1737397839215,-500.0,0.00021916,2]
[349728227,1737397839225,-500.0,0.00021916,2]
[349728229,1737397839235,-500.0,0.00021916,2]
[349728231,1737397839244,-500.0,0.00021916,2]
[349728233,1737397839254,-500.0,0.00021916,2]
[349728235,1737397839264,-500.0,0.00021916,2]
[349728236,1737397839280,-500.0,0.00021916,2]
[349728238,1737397839290,-500.0,0.00021916,2]
[349728240,1737397839300,-500.0,0.00021916,2]
[349728243,1737397839313,-500.0,0.00021916,2]
[349728244,1737397839327,-473.40282379,0.00021916,2]
[349728247,1737397839338,-500.0,0.00021916,2]
[349728249,1737397839351,-500.0,0.00021916,2]
[349728251,1737397839363,-500.0,0.00021916,2]
[349728252,1737397839373,-500.0,0.00021916,2]
[349728254,1737397839383,-508.8710545,0.00021916,2]
[349728256,1737397839394,-500.0,0.00021916,2]
[349728259,1737397839407,-500.0,0.00021916,2]
[349728261,1737397839418,-500.0,0.00021916,2]
[349728263,1737397839427,-500.0,0.00021916,2]
[349728265,1737397839438,-500.0,0.00021916,2]
[349728267,1737397839448,-500.0,0.00021916,2]
[349728269,1737397839458,-500.0,0.00021916,2]
[349728271,1737397839468,-500.0,0.00021916,2]
[349728273,1737397839478,-500.0,0.00021916,2]
[349728275,1737397839488,-500.0,0.00021916,2]
[349728277,1737397839498,-500.0,0.00021916,2]
[349728279,1737397839508,-500.0,0.00021916,2]
[349728281,1737397839521,-500.0,0.00021916,2]
[349728283,1737397839531,-500.0,0.00021916,2]
[349728285,1737397839541,-500.0,0.00021916,2]
[349728287,1737397839551,-500.0,0.00021916,2]
[349728289,1737397839560,-500.0,0.00021916,2]
[349728291,1737397839570,-500.0,0.00021916,2]
[349728293,1737397839579,-500.0,0.00021916,2]
[349728295,1737397839589,-500.0,0.00021916,2]
[349728297,1737397839600,-500.0,0.00021916,2]
[349728299,1737397839610,-500.0,0.00021916,2]
[349728301,1737397839619,-500.0,0.00021916,2]
[349728303,1737397839629,-500.0,0.00021916,2]
[349728305,1737397839639,-500.0,0.00021916,2]
[349728307,1737397839651,-500.0,0.00021916,2]
[349728309,1737397839661,-500.0,0.00021916,2]
[349728311,1737397839671,-500.0,0.00021916,2]
[349728313,1737397839680,-500.0,0.00021916,2]
[349728315,1737397839690,-500.0,0.00021916,2]
[349728317,1737397839699,-500.0,0.00021916,2]
[349728319,1737397839709,-299.30403964,0.00021916,2]
[349728321,1737397839718,-500.0,0.00021916,2]
[349728323,1737397839728,-500.0,0.00021916,2]
[349728325,1737397839737,-500.0,0.00021916,2]
[349728327,1737397839746,-500.0,0.00021916,2]
[349728329,1737397839756,-500.0,0.00021916,2]
[349728331,1737397839769,-500.0,0.00021916,2]
[349728333,1737397839779,-500.0,0.00021916,2]
[349728335,1737397839788,-500.0,0.00021916,2]
[349728337,1737397839798,-500.0,0.00021916,2]
[349728339,1737397839807,-500.0,0.00021916,2]
[349728341,1737397839817,-500.0,0.00021916,2]
[349728343,1737397839827,-500.0,0.00021916,2]
[349728345,1737397839836,-500.0,0.00021916,2]
[349728347,1737397839846,-500.0,0.00021916,2]
[349728349,1737397839856,-500.0,0.00021916,2]
[349728351,1737397839865,-500.0,0.00021916,2]
[349728353,1737397839875,-500.0,0.00021916,2]
[349728355,1737397839885,-500.0,0.00021916,2]
[349728357,1737397839895,-500.0,0.00021916,2]
[349728359,1737397839905,-500.0,0.00021916,2]
[349728361,1737397839915,-500.0,0.00021916,2]
[349728363,1737397839924,-500.0,0.00021916,2]
[349728365,1737397839935,-500.0,0.00021916,2]
[349728367,1737397839944,-500.0,0.00021916,2]
[349728369,1737397839953,-500.0,0.00021916,2]
[349728370,1737397839962,-500.0,0.00021916,2]
[349728373,1737397839972,-500.0,0.00021916,2]
[349728375,1737397839982,-500.0,0.00021916,2]
[349728376,1737397839992,-500.0,0.00021916,2]
[349728379,1737397840002,-500.0,0.00021916,2]
[349728381,1737397840012,-633.19952443,0.00021916,2]
[349728383,1737397840026,-500.0,0.00021916,2]
[349728385,1737397840036,-500.0,0.00021916,2]
[349728387,1737397840046,-500.0,0.00021916,2]
[349728389,1737397840055,-500.0,0.00021916,2]
[349728391,1737397840065,-500.0,0.00021916,2]
[349728393,1737397840075,-500.0,0.00021916,2]
[349728395,1737397840085,-500.0,0.00021916,2]
[349728397,1737397840097,-500.0,0.00021916,2]
[349728399,1737397840107,-200.0,0.00021916,2]
[349728401,1737397840118,-500.0,0.00021917,3]
[349728403,1737397840128,-422.91801308,0.00021917,3]
[349728405,1737397840138,-500.0,0.00021917,3]
[349728407,1737397840147,-500.0,0.00021917,3]
[349728409,1737397840158,-500.0,0.00021917,3]
[349728411,1737397840168,-500.0,0.00021917,3]
[349728413,1737397840178,-500.0,0.00021917,3]
[349728415,1737397840188,-500.0,0.00021917,3]
[349728417,1737397840198,-266.40006304,0.00021917,3]
[349728419,1737397840209,-501.73843792,0.00021917,3]
[349728421,1737397840219,-500.0,0.00021917,3]
[349728423,1737397840229,-500.0,0.00021917,3]
[349728425,1737397840239,-501.41594376,0.00021917,3]
[349728427,1737397840249,-500.0,0.00021917,3]
[349728429,1737397840258,-617.99320134,0.00021917,3]
[349728431,1737397840270,-162.25477041,0.00021917,3]
[349728433,1737397840280,-500.0,0.00021917,3]
[349728435,1737397840289,-500.0,0.00021917,3]
[349728437,1737397840299,-486.18651259,0.00021917,3]
[349728439,1737397840309,-500.0,0.00021917,3]
[349728441,1737397840319,-500.0,0.00021917,2]
[349728443,1737397840331,-500.0,0.00021917,3]
[349728445,1737397840340,-500.0,0.00021917,3]
[349728447,1737397840350,-500.0,0.00021917,3]
[349728449,1737397840362,-500.0,0.00021917,3]
[349728451,1737397840372,-502.21139909,0.00021917,3]
[349728453,1737397840382,-501.27189013,0.00021917,3]
[349728455,1737397840392,-500.0,0.00021917,3]
[349728457,1737397840402,-500.0,0.00021917,3]
[349728459,1737397840413,-500.0,0.00021917,3]
[349728461,1737397840422,-500.0,0.00021917,3]
[349728463,1737397840432,-500.0,0.00021917,3]
[349728465,1737397840442,-500.0,0.00021917,3]
[349728468,1737397840452,-500.0,0.00021917,3]
[349728470,1737397840462,-500.0,0.00021917,3]
[349728471,1737397840471,-500.0,0.00021917,3]
[349728473,1737397840482,-594.73616604,0.00021917,3]
[349728476,1737397840492,-501.67607826,0.00021917,3]
[349728478,1737397840501,-500.0,0.00021917,3]
[349728480,1737397840510,-500.0,0.00021917,3]
[349728481,1737397840521,-503.91749604,0.00021917,3]
[349728483,1737397840530,-500.0,0.00021917,3]
[349728486,1737397840540,-500.0,0.00021917,3]
[349728487,1737397840550,-500.0,0.00021917,3]
[349728489,1737397840562,-500.0,0.00021917,3]
[349728492,1737397840571,-500.0,0.00021917,3]
[349728494,1737397840581,-500.0,0.00021917,3]
[349728496,1737397840591,-500.0,0.00021917,3]
[349728498,1737397840600,-500.0,0.00021917,3]
[349728500,1737397840609,-500.0,0.00021917,3]
[349728502,1737397840619,-529.51768154,0.00021917,3]
[349728504,1737397840628,-500.0,0.00021917,3]
[349728506,1737397840638,-500.0,0.00021917,3]
[349728508,1737397840647,-500.0,0.00021917,3]
[349728510,1737397840657,-500.0,0.00021917,3]
[349728512,1737397840667,-500.0,0.00021917,3]
[349728514,1737397840677,-500.0,0.00021917,3]
[349728516,1737397840686,-500.0,0.00021917,3]
[349728518,1737397840696,-500.0,0.00021917,3]
[349728520,1737397840705,-504.9746595,0.00021917,3]
[349728522,1737397840715,-500.0,0.00021917,3]
[349728524,1737397840724,-500.0,0.00021917,3]
[349728526,1737397840734,-500.0,0.00021917,3]
[349728528,1737397840743,-605.38417957,0.00021917,3]
[349728530,1737397840753,-500.0,0.00021917,3]
[349728532,1737397840762,-500.0,0.00021917,3]
[349728534,1737397840775,-500.0,0.00021917,3]
[349728536,1737397840785,-500.0,0.00021917,3]
[349728547,1737397840878,-500.0,0.00021917,3]
[349728549,1737397840888,-500.0,0.00021917,3]
[349728551,1737397840898,-500.0,0.00021917,3]
[349728553,1737397840908,-500.0,0.00021917,3]
[349728555,1737397840917,-500.0,0.00021917,3]
[349728557,1737397840927,-500.0,0.00021917,3]
[349728559,1737397840936,-500.0,0.00021917,3]
[349728561,1737397840946,-500.0,0.00021917,3]
[349728563,1737397840955,-500.0,0.00021917,3]
[349728565,1737397840964,-500.0,0.00021917,3]